[Event "DEN-chT XtraCon 2018-19"]
[Site "Denmark"]
[Date "2018.10.27"]
[Round "1"]
[White "Ochsner, Thomas"]
[Black "Skjoldager, Per"]
[Result "1-0"]
[ECO "B14"]
[WhiteElo "2280"]
[BlackElo "2087"]
[Annotator "NA"]
[PlyCount "61"]
[EventDate "2018.10.27"]
[EventType "team-tourn"]
[EventCountry "DEN"]
[SourceTitle "playchess.com"]
[Source "ChessBase"]
[SourceQuality "1"]
[TimeControl "40/5400+30:1800+30"]

1. e4 {[%emt 0:00:00]} c6 {[%emt 0:00:00]} 2. d4 {[%emt 0:00:00]} d5 {[%emt 0:00:00]} 3. exd5 {[%emt 0:00:00]} cxd5 {[%emt 0:00:00]} 4. c4 {[%emt 0:00:01]} Nf6 {[%emt 0:00:09]} 5. Nc3 {[%emt 0:00:07]} g6 {[%emt 0:00:05]} 6. Qb3 {[%emt 0:00:15]} Bg7 {[%emt 0:01:10]} 7. cxd5 {[%emt 0:00:05]} O-O {[%emt 0:00:27]} 8. Be2 {[%emt 0:00:12]} Na6 {[%emt 0:01:49]} 9. Bf3 {[%emt 0:08:28]} Qb6 {[%emt 0:01:59]} 10. Nge2 {[%emt 0:12:23]} Qxb3 {[%emt 0:14:01]} 11. axb3 {[%emt 0:00:06]} Nb4 {[%emt 0:23:42]} 12. O-O {[%emt 0:00:21]} a5 {[%emt 0:02:58]} 13. Bf4 {[%emt 0:04:40]} Ne8 {[%emt 0:16:40]} 14. Nb5 {[%emt 0:14:02]} Bf5 {[%emt 0:04:54]} 15. d6 {[%emt 0:02:23]} exd6 {[%emt 0:02:03]} 16. Nxd6 {[%emt 0:02:40]} Nc2 {[%emt 0:04:20]} 17. Nxf5 {[%emt 0:01:41]} gxf5 {[%emt 0:00:50]} 18. Ra4 {[%emt 0:09:34]} Rd8 {[%emt 0:00:09]} 19. Rd1 {[%emt 0:04:32]} b6 {[%emt 0:02:26]} 20. Bg5 {[%emt 0:02:08]} f6 {[%emt 0:03:05]} 21. Bf4 {[%emt 0:01:04]} Nb4 {[%emt 0:00:50]} 22. d5 {[%emt 0:03:11]} Nd6 {[%emt 0:01:00]} 23. Nd4 {[%emt 0:00:31]} Rfe8 {[%emt 0:02:15]} 24. Nc6 {[%emt 0:03:12]} Nxc6 {[%emt 0:05:36]} 25. dxc6 {[%emt 0:00:14]} Nc8 {[%emt 0:00:47]} 26. Rxd8 {[%emt 0:02:45]} Rxd8 {[%emt 0:00:02]} 27. c7 {[%emt 0:00:31]} Re8 {[%emt 0:00:26]} 28. Kf1 {[%emt 0:00:32]} Bf8 {[%emt 0:00:12]} 29. Bc6 {[%emt 0:02:43]} Re7 {[%emt 0:02:01]} 30. Rd4 {[%emt 0:00:29]} Na7 {[%emt 0:00:33]} 31. Rd8 {[%emt 0:01:43]} 1-0

[Event "DEN-chT XtraCon 2018-19"]
[Site "Denmark"]
[Date "2018.10.27"]
[Round "1"]
[White "Borovnica, Tihomir"]
[Black "Skytte, Rasmus"]
[Result "0-1"]
[ECO "A06"]
[WhiteElo "2276"]
[BlackElo "2385"]
[Annotator "NA"]
[PlyCount "76"]
[EventDate "2018.10.27"]
[EventType "team-tourn"]
[EventCountry "DEN"]
[SourceTitle "playchess.com"]
[Source "ChessBase"]
[SourceQuality "1"]
[TimeControl "40/5400+30:1800+30"]

1. Nf3 {[%emt 0:00:00]} d5 {[%emt 0:00:32]} 2. g3 {[%emt 0:00:00]} Nf6 {[%emt 0:02:12]} 3. Bg2 {[%emt 0:00:00]} e6 {[%emt 0:02:11]} 4. O-O {[%emt 0:00:41]} Be7 {[%emt 0:00:11]} 5. d3 {[%emt 0:06:12]} c5 {[%emt 0:01:36]} 6. Nbd2 {[%emt 0:00:24]} Nc6 {[%emt 0:03:23]} 7. e4 {[%emt 0:00:29]} O-O {[%emt 0:00:32]} 8. e5 {[%emt 0:01:28]} Nd7 {[%emt 0:00:21]} 9. Re1 {[%emt 0:00:04]} Qc7 {[%emt 0:02:39]} 10. Qe2 {[%emt 0:02:34]} b5 {[%emt 0:02:25]} 11. Nf1 {[%emt 0:03:37]} Nd4 {[%emt 0:11:15]} 12. Nxd4 {[%emt 0:01:20]} cxd4 {[%emt 0:00:01]} 13. h4 {[%emt 0:01:00]} Bb4 {[%emt 0:04:24]} 14. Bd2 {[%emt 0:00:17]} Bxd2 {[%emt 0:02:17]} 15. Qxd2 {[%emt 0:00:09]} Nxe5 {[%emt 0:03:05]} 16. Qf4 {[%emt 0:02:31]} f6 {[%emt 0:00:44]} 17. Rac1 {[%emt 0:04:31]} Qb6 {[%emt 0:03:27]} 18. h5 {[%emt 0:00:05]} Bd7 {[%emt 0:04:40]} 19. Nd2 {[%emt 0:08:00]} Nf7 {[%emt 0:01:44]} 20. Qh4 {[%emt 0:00:12]} Nh6 {[%emt 0:02:40]} 21. Re2 {[%emt 0:10:00]} Rad8 {[%emt 0:03:32]} 22. a3 {[%emt 0:05:37]} Kh8 {[%emt 0:05:05]} 23. b4 {[%emt 0:00:20]} Nf5 {[%emt 0:00:56]} 24. Qh1 {[%emt 0:00:06]} Qa6 {[%emt 0:00:55]} 25. Ra1 {[%emt 0:00:12]} Qd6 {[%emt 0:17:26]} 26. Nb3 {[%emt 0:02:02]} Bc8 {[%emt 0:00:26]} 27. a4 {[%emt 0:18:44]} bxa4 {[%emt 0:06:17]} 28. Rxa4 {[%emt 0:00:10]} Bd7 {[%emt 0:02:42]} 29. Rxa7 {[%emt 0:00:48]} Qxb4 {[%emt 0:01:59]} 30. Bh3 {[%emt 0:10:23]} Qb6 {[%emt 0:00:44]} 31. Ra5 {[%emt 0:13:56]} Nh6 {[%emt 0:04:00]} 32. Kg2 {[%emt 0:03:22]} e5 {[%emt 0:01:40]} 33. Bxd7 {[%emt 0:00:05]} Rxd7 {[%emt 0:00:05]} 34. Qa1 {[%emt 0:00:03]} Rc8 {[%emt 0:04:27]} 35. Qa4 {[%emt 0:00:22]} Rdd8 {[%emt 0:00:56]} 36. Rb5 {[%emt 0:00:44]} Qc6 {[%emt 0:02:34]} 37. Qa5 {[%emt 0:01:06]} Qe8 {[%emt 0:02:05]} 38. Rxd5 {[%emt 0:00:11]} Qc6 {[%emt 0:00:52]} 0-1

[Event "DEN-chT XtraCon 2018-19"]
[Site "Denmark"]
[Date "2018.10.27"]
[Round "1"]
[White "Christensen, Thomas"]
[Black "Andersen, Ib Hother"]
[Result "0-1"]
[ECO "E32"]
[WhiteElo "2219"]
[BlackElo "2145"]
[Annotator "NA"]
[PlyCount "70"]
[EventDate "2018.10.27"]
[EventType "team-tourn"]
[EventCountry "DEN"]
[SourceTitle "playchess.com"]
[Source "ChessBase"]
[SourceQuality "1"]
[TimeControl "40/5400+30:1800+30"]

1. d4 {[%emt 0:00:00]} Nf6 {[%emt 0:00:00]} 2. c4 {[%emt 0:00:00]} e6 {[%emt 0:00:00]} 3. Nc3 {[%emt 0:00:03]} Bb4 {[%emt 0:00:00]} 4. Qc2 {[%emt 0:00:15]} O-O {[%emt 0:00:00]} 5. a3 {[%emt 0:00:10]} Bxc3+ {[%emt 0:00:00]} 6. Qxc3 {[%emt 0:00:11]} b5 {[%emt 0:00:12]} 7. c5 {[%emt 0:06:41]} Bb7 {[%emt 0:26:41]} 8. Bg5 {[%emt 0:03:11]} a5 {[%emt 0:02:07]} 9. Rc1 {[%emt 0:11:41]} h6 {[%emt 0:06:14]} 10. Bh4 {[%emt 0:01:54]} Nc6 {[%emt 0:00:46]} 11. e3 {[%emt 0:04:21]} b4 {[%emt 0:00:36]} 12. Qc2 {[%emt 0:05:33]} g5 {[%emt 0:17:40]} 13. Bg3 {[%emt 0:00:07]} Nh5 {[%emt 0:00:28]} 14. Qd1 {[%emt 0:10:43]} Nxg3 {[%emt 0:05:04]} 15. hxg3 {[%emt 0:00:46]} Kg7 {[%emt 0:00:44]} 16. Qh5 {[%emt 0:00:26]} Qf6 {[%emt 0:02:15]} 17. Bd3 {[%emt 0:04:04]} Ba6 {[%emt 0:01:12]} 18. Be4 {[%emt 0:05:07]} bxa3 {[%emt 0:00:16]} 19. bxa3 {[%emt 0:00:13]} Rab8 {[%emt 0:00:14]} 20. Nf3 {[%emt 0:04:44]} Rb2 {[%emt 0:02:13]} 21. Bc2 {[%emt 0:08:20]} Rfb8 {[%emt 0:01:46]} 22. Kd1 {[%emt 0:03:09]} d6 {[%emt 0:01:55]} 23. cxd6 {[%emt 0:05:02]} cxd6 {[%emt 0:00:10]} 24. Qg4 {[%emt 0:04:31]} Rc8 {[%emt 0:07:32]} 25. Rh5 {[%emt 0:01:56]} Rxc2 {[%emt 0:03:25]} 26. Rxc2 {[%emt 0:02:39]} Bd3 {[%emt 0:00:43]} 27. Rxc6 {[%emt 0:09:55]} Rxc6 {[%emt 0:00:51]} 28. Rh1 {[%emt 0:03:21]} Rb6 {[%emt 0:02:42]} 29. Kd2 {[%emt 0:00:57]} Bf5 {[%emt 0:01:52]} 30. Qh5 {[%emt 0:00:14]} Rb2+ {[%emt 0:00:16]} 31. Kc3 {[%emt 0:00:07]} Rxf2 {[%emt 0:04:36]} 32. Nd2 {[%emt 0:01:09]} e5 {[%emt 0:03:18]} 33. g4 {[%emt 0:00:35]} exd4+ {[%emt 0:01:05]} 34. exd4 {[%emt 0:00:10]} Bh7 {[%emt 0:04:47]} 35. Qh3 {[%emt 0:03:41]} Qe6 0-1

[Event "DEN-chT XtraCon 2018-19"]
[Site "Denmark"]
[Date "2018.10.27"]
[Round "1"]
[White "Jaksland, Tim"]
[Black "Rewitz, Poul"]
[Result "1/2-1/2"]
[ECO "A30"]
[WhiteElo "2214"]
[BlackElo "2274"]
[Annotator "NA"]
[PlyCount "139"]
[EventDate "2018.10.27"]
[EventType "team-tourn"]
[EventCountry "DEN"]
[SourceTitle "playchess.com"]
[Source "ChessBase"]
[SourceQuality "1"]
[TimeControl "40/5400+30:1800+30"]

1. c4 {[%emt 0:00:00]} c5 {[%emt 0:00:18]} 2. Nf3 {[%emt 0:01:36]} Nc6 {[%emt 0:00:12]} 3. b3 {[%emt 0:02:56]} Nf6 {[%emt 0:02:22]} 4. Bb2 {[%emt 0:02:08]} e6 {[%emt 0:03:29]} 5. g3 {[%emt 0:04:20]} Be7 {[%emt 0:00:50]} 6. Bg2 {[%emt 0:00:06]} O-O {[%emt 0:00:16]} 7. O-O {[%emt 0:00:42]} d5 {[%emt 0:00:43]} 8. e3 {[%emt 0:01:49]} dxc4 {[%emt 0:06:55]} 9. bxc4 {[%emt 0:00:08]} Qb6 {[%emt 0:02:56]} 10. Qc2 {[%emt 0:03:25]} Nb4 {[%emt 0:08:33]} 11. Qb3 {[%emt 0:04:27]} Nd3 {[%emt 0:02:10]} 12. Ba3 {[%emt 0:20:15]} Rd8 {[%emt 0:02:51]} 13. Nc3 {[%emt 0:21:12]} Ng4 {[%emt 0:09:55]} 14. h3 {[%emt 0:02:39]} Nge5 {[%emt 0:04:04]} 15. Nxe5 {[%emt 0:03:18]} Nxe5 {[%emt 0:00:17]} 16. d4 {[%emt 0:01:33]} Nc6 {[%emt 0:02:22]} 17. Bxc5 {[%emt 0:09:41]} Bxc5 {[%emt 0:01:28]} 18. dxc5 {[%emt 0:00:04]} Qxc5 {[%emt 0:03:16]} 19. Qb5 {[%emt 0:00:44]} Qxb5 {[%emt 0:03:51]} 20. cxb5 {[%emt 0:00:36]} Na5 {[%emt 0:00:11]} 21. Rfd1 {[%emt 0:03:30]} Bd7 {[%emt 0:01:36]} 22. Rd4 {[%emt 0:00:41]} Rac8 {[%emt 0:17:41]} 23. Rad1 {[%emt 0:00:51]} Rxc3 {[%emt 0:00:25]} 24. Rxd7 {[%emt 0:00:33]} Rxd7 {[%emt 0:00:20]} 25. Rxd7 {[%emt 0:00:05]} g5 {[%emt 0:00:29]} 26. Bxb7 {[%emt 0:06:30]} Nxb7 {[%emt 0:02:21]} 27. Rxb7 {[%emt 0:00:05]} Ra3 {[%emt 0:00:13]} 28. Rb8+ {[%emt 0:02:20]} Kg7 {[%emt 0:00:10]} 29. Ra8 {[%emt 0:00:05]} Rxa2 {[%emt 0:00:24]} 30. b6 {[%emt 0:00:15]} Rb2 {[%emt 0:00:07]} 31. bxa7 {[%emt 0:00:36]} Ra2 {[%emt 0:00:18]} 32. Kg2 {[%emt 0:00:25]} h5 {[%emt 0:01:14]} 33. Kf3 {[%emt 0:00:33]} Ra4 {[%emt 0:00:21]} 34. Ke2 {[%emt 0:02:40]} Ra3 {[%emt 0:01:36]} 35. f4 {[%emt 0:02:03]} g4 {[%emt 0:03:01]} 36. hxg4 {[%emt 0:00:54]} hxg4 {[%emt 0:00:09]} 37. e4 {[%emt 0:00:31]} Ra1 {[%emt 0:01:14]} 38. Ke3 {[%emt 0:00:48]} Ra4 {[%emt 0:01:49]} 39. Kd3 {[%emt 0:00:36]} Ra1 {[%emt 0:00:25]} 40. Kd4 {[%emt 0:00:30]} Ra5 {[%emt 0:00:54]} 41. Kc4 {[%emt 0:30:22]} Ra4+ {[%emt 0:31:11]} 42. Kc5 {[%emt 0:00:00]} Ra1 {[%emt 0:00:00]} 43. Kd6 {[%emt 0:00:00]} Ra6+ {[%emt 0:00:00]} 44. Ke7 {[%emt 0:00:00]} Ra1 {[%emt 0:00:00]} 45. f5 {[%emt 0:00:00]} exf5 46. exf5 {[%emt 0:00:00]} Re1+ {[%emt 0:00:00]} 47. Kd6 {[%emt 0:00:00]} Ra1 {[%emt 0:00:00]} 48. Ke5 {[%emt 0:00:00]} Ra5+ {[%emt 0:00:00]} 49. Kf4 {[%emt 0:00:00]} Kf6 {[%emt 0:00:00]} 50. Kxg4 {[%emt 0:00:00]} Ra1 {[%emt 0:00:00]} 51. Kh5 {[%emt 0:00:33]} Rh1+ {[%emt 0:00:00]} 52. Kg4 {[%emt 0:00:03]} Ra1 {[%emt 0:00:00]} 53. Rb8 {[%emt 0:00:11]} Rxa7 {[%emt 0:00:00]} 54. Rb6+ {[%emt 0:00:02]} Kg7 {[%emt 0:00:00]} 55. Kg5 {[%emt 0:00:11]} Ra5 {[%emt 0:00:00]} 56. Rb7 {[%emt 0:00:28]} Rc5 {[%emt 0:00:00]} 57. g4 {[%emt 0:00:06]} Ra5 {[%emt 0:00:00]} 58. Re7 {[%emt 0:00:36]} Rc5 {[%emt 0:00:00]} 59. Re4 {[%emt 0:00:12]} Ra5 {[%emt 0:00:00]} 60. Kf4 {[%emt 0:00:08]} Ra1 {[%emt 0:05:20]} 61. Rb4 {[%emt 0:01:34]} Rf1+ {[%emt 0:02:55]} 62. Ke5 {[%emt 0:01:28]} Re1+ {[%emt 0:01:46]} 63. Re4 {[%emt 0:00:35]} Ra1 {[%emt 0:01:19]} 64. g5 {[%emt 0:00:40]} f6+ {[%emt 0:01:14]} 65. gxf6+ {[%emt 0:00:22]} Kf7 {[%emt 0:00:09]} 66. Re2 {[%emt 0:01:59]} Ra5+ {[%emt 0:02:25]} 67. Kf4 {[%emt 0:00:08]} Kxf6 {[%emt 0:01:11]} 68. Re6+ {[%emt 0:00:22]} Kf7 {[%emt 0:00:20]} 69. Rb6 {[%emt 0:00:00]} Ra1 {[%emt 0:00:22]} 70. Kg5 {[%emt 0:00:30]} 1/2-1/2

[Event "DEN-chT XtraCon 2018-19"]
[Site "Denmark"]
[Date "2018.10.27"]
[Round "1"]
[White "Pedersen, Nicolai Kvist Brond"]
[Black "Jorgensen, Dennis"]
[Result "1-0"]
[ECO "E15"]
[WhiteElo "2171"]
[BlackElo "2124"]
[Annotator "NA"]
[PlyCount "35"]
[EventDate "2018.10.27"]
[EventType "team-tourn"]
[EventCountry "DEN"]
[SourceTitle "playchess.com"]
[Source "ChessBase"]
[SourceQuality "1"]
[TimeControl "40/5400+30:1800+30"]

1. d4 {[%emt 0:00:29]} Nf6 {[%emt 0:00:01]} 2. Nf3 {[%emt 0:00:31]} e6 {[%emt 0:00:19]} 3. c4 {[%emt 0:00:14]} b6 {[%emt 0:02:29]} 4. g3 {[%emt 0:00:21]} Ba6 {[%emt 0:00:31]} 5. b3 {[%emt 0:03:16]} Bb4+ {[%emt 0:00:41]} 6. Bd2 {[%emt 0:00:06]} Be7 {[%emt 0:00:30]} 7. Nc3 {[%emt 0:04:16]} d5 {[%emt 0:04:03]} 8. cxd5 {[%emt 0:02:38]} exd5 {[%emt 0:02:27]} 9. Bg2 {[%emt 0:05:11]} O-O {[%emt 0:06:10]} 10. O-O {[%emt 0:04:12]} Ne4 {[%emt 0:11:33]} 11. Ne5 {[%emt 0:12:59]} Nxc3 {[%emt 0:08:40]} 12. Bxc3 {[%emt 0:00:07]} Re8 {[%emt 0:01:49]} 13. Qc2 {[%emt 0:04:24]} Bf8 {[%emt 0:04:27]} 14. Nxf7 {[%emt 0:10:22]} Kxf7 {[%emt 0:01:53]} 15. Qf5+ {[%emt 0:01:34]} Kg8 {[%emt 0:00:56]} 16. Qxd5+ {[%emt 0:03:48]} Qxd5 {[%emt 0:00:25]} 17. Bxd5+ {[%emt 0:00:05]} Kh8 {[%emt 0:00:05]} 18. Bxa8 {[%emt 0:00:29]} 1-0

[Event "DEN-chT XtraCon 2018-19"]
[Site "Denmark"]
[Date "2018.10.27"]
[Round "1"]
[White "Svenninggaard, Thomas"]
[Black "Ramsdal, Jens Albert"]
[Result "0-1"]
[ECO "B24"]
[WhiteElo "2163"]
[BlackElo "2222"]
[Annotator "NA"]
[PlyCount "58"]
[EventDate "2018.10.27"]
[EventType "team-tourn"]
[EventCountry "DEN"]
[SourceTitle "playchess.com"]
[Source "ChessBase"]
[SourceQuality "1"]
[TimeControl "40/5400+30:1800+30"]

1. e4 {[%emt 0:00:00]} c5 {[%emt 0:00:01]} 2. Nc3 {[%emt 0:00:00]} Nc6 {[%emt 0:00:18]} 3. g4 {[%emt 0:00:00]} e5 {[%emt 0:03:58]} 4. Bg2 {[%emt 0:00:49]} d6 {[%emt 0:02:17]} 5. d3 {[%emt 0:01:52]} Nge7 {[%emt 0:02:27]} 6. h4 {[%emt 0:06:31]} Nd4 {[%emt 0:06:32]} 7. a4 {[%emt 0:11:51]} Bxg4 {[%emt 0:08:13]} 8. f3 {[%emt 0:13:11]} Be6 {[%emt 0:00:30]} 9. h5 {[%emt 0:03:20]} Nec6 {[%emt 0:04:25]} 10. Nge2 {[%emt 0:07:42]} Be7 {[%emt 0:00:23]} 11. O-O {[%emt 0:02:58]} Rc8 {[%emt 0:00:07]} 12. Nxd4 {[%emt 0:09:12]} cxd4 {[%emt 0:01:09]} 13. Ne2 {[%emt 0:00:20]} g6 {[%emt 0:10:07]} 14. h6 {[%emt 0:02:19]} Bg5 {[%emt 0:00:52]} 15. f4 {[%emt 0:03:42]} Bxh6 {[%emt 0:01:40]} 16. f5 {[%emt 0:01:46]} Bxc1 {[%emt 0:00:07]} 17. Qxc1 {[%emt 0:03:08]} Bd7 {[%emt 0:00:36]} 18. Qh6 {[%emt 0:01:57]} Qf6 {[%emt 0:02:28]} 19. Ng3 {[%emt 0:07:15]} Ke7 {[%emt 0:02:51]} 20. Qd2 {[%emt 0:05:02]} Qh4 {[%emt 0:07:53]} 21. Qe1 {[%emt 0:05:31]} f6 {[%emt 0:00:51]} 22. Rf3 {[%emt 0:02:17]} g5 {[%emt 0:00:10]} 23. Rf1 {[%emt 0:04:10]} g4 {[%emt 0:04:20]} 24. c3 {[%emt 0:01:15]} h5 {[%emt 0:00:06]} 25. Kf2 {[%emt 0:03:11]} Qg5 {[%emt 0:00:39]} 26. Rh1 {[%emt 0:01:52]} h4 {[%emt 0:00:37]} 27. Ne2 {[%emt 0:00:09]} h3 {[%emt 0:00:13]} 28. Ng3 {[%emt 0:01:25]} Qf4+ {[%emt 0:04:31]} 29. Kg1 {[%emt 0:00:06]} hxg2 {[%emt 0:00:28]} 0-1

[Event "DEN-chT XtraCon 2018-19"]
[Site "Denmark"]
[Date "2018.10.27"]
[Round "1"]
[White "Nielsen, Thomas Bach"]
[Black "Grove, Peter"]
[Result "0-1"]
[ECO "D20"]
[WhiteElo "2136"]
[BlackElo "2213"]
[Annotator "NA"]
[PlyCount "96"]
[EventDate "2018.10.27"]
[EventType "team-tourn"]
[EventCountry "DEN"]
[SourceTitle "playchess.com"]
[Source "ChessBase"]
[SourceQuality "1"]
[TimeControl "40/5400+30:1800+30"]

1. d4 {[%emt 0:00:00]} d5 {[%emt 0:01:58]} 2. c4 {[%emt 0:00:00]} dxc4 {[%emt 0:00:07]} 3. Nc3 {[%emt 0:00:00]} Nf6 {[%emt 0:00:37]} 4. e4 {[%emt 0:01:39]} Nc6 {[%emt 0:01:24]} 5. e5 {[%emt 0:02:47]} Nd5 {[%emt 0:04:20]} 6. Bxc4 {[%emt 0:02:52]} Nb6 {[%emt 0:02:57]} 7. Bb5 {[%emt 0:00:58]} Bd7 {[%emt 0:00:17]} 8. Nf3 {[%emt 0:21:41]} e6 {[%emt 0:05:53]} 9. O-O {[%emt 0:02:30]} Nb4 {[%emt 0:00:22]} 10. Be2 {[%emt 0:16:57]} Bc6 {[%emt 0:00:41]} 11. a3 {[%emt 0:05:00]} N4d5 {[%emt 0:03:48]} 12. Qc2 {[%emt 0:06:29]} f5 {[%emt 0:08:22]} 13. exf6 {[%emt 0:07:00]} gxf6 {[%emt 0:02:56]} 14. Bb5 {[%emt 0:04:07]} Bxb5 {[%emt 0:01:08]} 15. Nxb5 {[%emt 0:00:07]} Qd7 {[%emt 0:00:16]} 16. Qe2 {[%emt 0:04:21]} a6 {[%emt 0:01:03]} 17. Nc3 {[%emt 0:00:20]} O-O-O {[%emt 0:02:27]} 18. Re1 {[%emt 0:01:08]} Re8 {[%emt 0:01:01]} 19. Ne4 {[%emt 0:01:37]} Qc6 {[%emt 0:08:43]} 20. Bd2 {[%emt 0:03:40]} Qc4 {[%emt 0:05:15]} 21. Rac1 {[%emt 0:00:47]} Qxe2 {[%emt 0:00:42]} 22. Rxe2 {[%emt 0:00:01]} Nd7 {[%emt 0:03:08]} 23. Nc5 {[%emt 0:02:21]} Nxc5 {[%emt 0:05:30]} 24. dxc5 {[%emt 0:00:03]} Kd7 {[%emt 0:01:38]} 25. b4 {[%emt 0:04:15]} e5 {[%emt 0:01:57]} 26. Rce1 {[%emt 0:00:58]} a5 {[%emt 0:01:54]} 27. Nh4 {[%emt 0:02:46]} axb4 {[%emt 0:01:44]} 28. axb4 {[%emt 0:00:02]} Ra8 {[%emt 0:00:26]} 29. f4 {[%emt 0:02:05]} exf4 {[%emt 0:01:10]} 30. Nf5 {[%emt 0:00:46]} Ra2 {[%emt 0:04:04]} 31. Rd1 {[%emt 0:01:03]} c6 {[%emt 0:03:18]} 32. Re4 {[%emt 0:00:34]} Rg8 {[%emt 0:01:29]} 33. h4 {[%emt 0:03:37]} Rg4 {[%emt 0:03:40]} 34. g3 {[%emt 0:00:56]} Ra4 {[%emt 0:02:28]} 35. Kg2 {[%emt 0:02:24]} f3+ {[%emt 0:00:40]} 36. Kxf3 {[%emt 0:00:10]} Rxe4 {[%emt 0:00:05]} 37. Kxe4 {[%emt 0:00:09]} Bxc5 {[%emt 0:00:08]} 38. Kf3 {[%emt 0:02:01]} Bxb4 {[%emt 0:00:45]} 39. Bxb4 {[%emt 0:00:41]} Rxb4 {[%emt 0:00:10]} 40. Rd3 {[%emt 0:00:36]} Ke6 {[%emt 0:00:33]} 41. g4 {[%emt 0:30:26]} Rb1 {[%emt 0:32:04]} 42. h5 {[%emt 0:00:00]} c5 {[%emt 0:00:00]} 43. Rd2 {[%emt 0:00:00]} c4 {[%emt 0:00:00]} 44. Re2+ {[%emt 0:00:00]} Kd7 {[%emt 0:00:00]} 45. Rd2 {[%emt 0:00:00]} Kc6 {[%emt 0:00:00]} 46. Ke4 {[%emt 0:00:00]} Re1+ {[%emt 0:00:00]} 47. Kd4 {[%emt 0:00:00]} b5 {[%emt 0:00:00]} 48. Nh6 {[%emt 0:00:00]} Rf1 {[%emt 0:00:22]} 0-1

[Event "DEN-chT XtraCon 2018-19"]
[Site "Denmark"]
[Date "2018.10.27"]
[Round "1"]
[White "Haubro, Sigfred"]
[Black "Pedersen, Jan Rode"]
[Result "1-0"]
[ECO "A05"]
[WhiteElo "2130"]
[BlackElo "2177"]
[Annotator "NA"]
[PlyCount "71"]
[EventDate "2018.10.27"]
[EventType "team-tourn"]
[EventCountry "DEN"]
[SourceTitle "playchess.com"]
[Source "ChessBase"]
[SourceQuality "1"]
[TimeControl "40/5400+30:1800+30"]

1. Nf3 {[%emt 0:00:07]} Nf6 {[%emt 0:00:00]} 2. b3 {[%emt 0:00:05]} e6 {[%emt 0:01:41]} 3. Bb2 {[%emt 0:00:20]} b6 {[%emt 0:00:05]} 4. e3 {[%emt 0:00:38]} Bb7 {[%emt 0:00:10]} 5. Be2 {[%emt 0:00:06]} Be7 {[%emt 0:02:25]} 6. O-O {[%emt 0:03:37]} O-O {[%emt 0:00:06]} 7. d4 {[%emt 0:01:14]} d6 {[%emt 0:15:05]} 8. c4 {[%emt 0:03:09]} Nbd7 {[%emt 0:00:32]} 9. Nbd2 {[%emt 0:02:15]} Ne4 {[%emt 0:01:45]} 10. Nxe4 {[%emt 0:00:30]} Bxe4 {[%emt 0:00:07]} 11. Nd2 {[%emt 0:01:58]} Bb7 {[%emt 0:09:02]} 12. Qc2 {[%emt 0:07:41]} d5 {[%emt 0:13:09]} 13. e4 {[%emt 0:09:47]} Bb4 {[%emt 0:01:46]} 14. exd5 {[%emt 0:09:22]} exd5 {[%emt 0:04:57]} 15. Nf3 {[%emt 0:02:04]} Bd6 {[%emt 0:06:06]} 16. Ne5 {[%emt 0:04:52]} dxc4 {[%emt 0:13:17]} 17. Bxc4 {[%emt 0:07:13]} Nxe5 {[%emt 0:09:30]} 18. dxe5 {[%emt 0:01:41]} Qg5 {[%emt 0:02:50]} 19. f4 {[%emt 0:03:52]} Bc5+ {[%emt 0:00:07]} 20. Kh1 {[%emt 0:00:08]} Qg4 {[%emt 0:00:09]} 21. Bd3 {[%emt 0:01:04]} h5 {[%emt 0:02:54]} 22. Bh7+ {[%emt 0:07:09]} Kh8 {[%emt 0:00:03]} 23. Be4 {[%emt 0:00:08]} Bxe4 {[%emt 0:00:28]} 24. Qxe4 {[%emt 0:00:07]} Rad8 {[%emt 0:00:02]} 25. Bc3 {[%emt 0:01:03]} a5 {[%emt 0:00:11]} 26. Rf3 {[%emt 0:05:31]} Rd7 {[%emt 0:02:16]} 27. h3 {[%emt 0:02:42]} Qh4 {[%emt 0:00:13]} 28. Raf1 {[%emt 0:05:47]} Rfd8 {[%emt 0:00:40]} 29. Be1 {[%emt 0:00:51]} Qe7 {[%emt 0:00:24]} 30. f5 {[%emt 0:01:12]} Rd4 {[%emt 0:02:37]} 31. Qe2 {[%emt 0:00:46]} Bb4 {[%emt 0:03:37]} 32. f6 {[%emt 0:02:34]} gxf6 {[%emt 0:06:48]} 33. Rxf6 {[%emt 0:00:19]} R8d7 {[%emt 0:01:12]} 34. Qxh5+ {[%emt 0:00:40]} Kg8 {[%emt 0:00:00]} 35. Qg5+ {[%emt 0:02:29]} Kf8 {[%emt 0:00:01]} 36. e6 {[%emt 0:02:07]} 1-0

[Event "DEN-chT XtraCon 2018-19"]
[Site "Denmark"]
[Date "2018.10.27"]
[Round "1"]
[White "Rendboe, John Filip"]
[Black "Pedersen, Lars Erik"]
[Result "1/2-1/2"]
[ECO "E48"]
[WhiteElo "2103"]
[BlackElo "2087"]
[Annotator "NA"]
[PlyCount "57"]
[EventDate "2018.10.27"]
[EventType "team-tourn"]
[EventCountry "DEN"]
[SourceTitle "playchess.com"]
[Source "ChessBase"]
[SourceQuality "1"]
[TimeControl "40/5400+30:1800+30"]

1. d4 {[%emt 0:00:00]} Nf6 {[%emt 0:00:00]} 2. c4 {[%emt 0:00:00]} e6 {[%emt 0:00:04]} 3. Nc3 {[%emt 0:00:36]} Bb4 {[%emt 0:00:25]} 4. e3 {[%emt 0:00:33]} O-O {[%emt 0:00:29]} 5. Bd3 {[%emt 0:00:19]} d5 {[%emt 0:00:24]} 6. Nge2 {[%emt 0:01:46]} c5 {[%emt 0:02:22]} 7. O-O {[%emt 0:01:45]} cxd4 {[%emt 0:01:40]} 8. exd4 {[%emt 0:00:26]} dxc4 {[%emt 0:01:00]} 9. Bxc4 {[%emt 0:00:38]} Nc6 {[%emt 0:00:19]} 10. a3 {[%emt 0:01:54]} Be7 {[%emt 0:00:31]} 11. Ba2 {[%emt 0:03:22]} b6 {[%emt 0:13:31]} 12. Re1 {[%emt 0:33:29]} Bb7 {[%emt 0:07:52]} 13. b4 {[%emt 0:04:30]} Rc8 {[%emt 0:02:46]} 14. Bb2 {[%emt 0:01:40]} Qd6 {[%emt 0:11:31]} 15. d5 {[%emt 0:08:03]} exd5 {[%emt 0:08:31]} 16. Nxd5 {[%emt 0:01:06]} Nxd5 {[%emt 0:01:09]} 17. Qxd5 {[%emt 0:01:17]} Qxd5 {[%emt 0:10:41]} 18. Bxd5 {[%emt 0:00:08]} Rfd8 {[%emt 0:05:47]} 19. Rad1 {[%emt 0:03:24]} Kf8 {[%emt 0:03:01]} 20. Ng3 {[%emt 0:06:24]} g6 {[%emt 0:02:31]} 21. Bf3 {[%emt 0:13:23]} Ba6 {[%emt 0:08:13]} 22. Bd5 {[%emt 0:03:44]} Nb8 {[%emt 0:02:36]} 23. h3 {[%emt 0:03:42]} Bc4 {[%emt 0:05:48]} 24. Bf3 {[%emt 0:02:31]} Rxd1 {[%emt 0:00:37]} 25. Rxd1 {[%emt 0:00:05]} Rd8 {[%emt 0:00:38]} 26. Rxd8+ {[%emt 0:01:19]} Bxd8 {[%emt 0:00:10]} 27. Ne2 {[%emt 0:01:03]} Nd7 {[%emt 0:01:09]} 28. Bd4 {[%emt 0:03:19]} Bf6 {[%emt 0:01:44]} 29. Bxf6 {[%emt 0:00:20]} 1/2-1/2